fUST/lending_fUST_20250205
["ID","MTS","AMOUNT","RATE_DAILY","PERIOD"]
[351723907,1738765848853,-608.94,0.00015602,2]
[351723909,1738765848864,-5122.87,0.00015602,2]
[351723911,1738765848873,-500.0,0.00015602,2]
[351723913,1738765848883,-500.0,0.00015602,2]
[351723915,1738765848892,-151.0,0.00015602,2]
[351723917,1738765848903,-615.74,0.00015602,2]
[351723919,1738765848913,-493.30802377,0.00015602,2]
[351723921,1738765848928,-500.0,0.00015602,2]
[351723924,1738765848938,-501.6,0.00015602,2]
[351723926,1738765848949,-2958.84,0.00015602,2]
[351723927,1738765848961,-1610.13,0.00015602,2]
[351723930,1738765848973,-500.0,0.00015602,2]
[351723932,1738765848985,-500.0,0.00015602,2]
[351723934,1738765848995,-923.43,0.00015602,2]
[351723936,1738765849006,-2816.85,0.00015602,2]
[351723938,1738765849019,-500.0,0.00015602,2]
[351723940,1738765849030,-500.0,0.00015602,2]
[351723942,1738765849040,-81.85933233,0.00015602,2]
[351723968,1738765849317,-418.14066767,0.00015602,2]
[351723970,1738765849327,-46.38229152,0.00015602,2]
[351723999,1738765849605,-660.89404745,0.00015463,2]
[351724051,1738765850114,-500.0,0.00015462,2]
[351724053,1738765850126,-7252.54595255,0.00015463,2]
[351724055,1738765850136,-500.0,0.00015463,2]
[351724057,1738765850147,-500.0,0.00015463,2]
[351724060,1738765850157,-500.0,0.00015463,2]
[351724062,1738765850167,-500.0,0.00015463,2]
[351724064,1738765850177,-500.0,0.00015463,2]
[351724065,1738765850186,-500.0,0.00015463,2]
[351724067,1738765850196,-500.0,0.00015463,2]
[351724069,1738765850206,-300.64946299,0.00015463,2]
[351724071,1738765850215,-500.0,0.00015463,2]
[351724074,1738765850225,-500.0,0.00015463,2]
[351724076,1738765850235,-500.0,0.00015463,2]
[351724078,1738765850245,-628.93196158,0.00015463,2]
[351724080,1738765850254,-182.72194473,0.00015463,2]
[351724082,1738765850269,-317.27805527,0.00015463,2]
[351724084,1738765850279,-496.01451246,0.00015463,2]
[351724086,1738765850291,-3.98548754,0.00015463,2]
[351724088,1738765850300,-500.0,0.00015463,2]
[351724090,1738765850311,-500.0,0.00015463,2]
[351724092,1738765850321,-500.0,0.00015463,2]
[351724094,1738765850331,-502.89173317,0.00015464,2]
[351724096,1738765850341,-500.0,0.00015465,2]
[351724099,1738765850351,-500.0,0.00015465,2]
[351724101,1738765850360,-559.52,0.00015465,2]
[351724102,1738765850370,-1346.62847585,0.00015502,2]
[351724105,1738765850380,-3091.74018655,0.000156,2]
[351724917,1738765863559,160.79,0.0001483,2]
[351724918,1738765926637,317.534241,0.00013973,2]
[351724919,1738766285621,729.7546445,0.00014463,2]
[351724927,1738766690995,2672.0,0.00015,2]
[351725183,1738767031907,-2000.0,0.000154,2]
[351725187,1738767031943,-1503.0,0.000154,2]
[351725189,1738767031952,-300.0,0.00015428,2]
[351725191,1738767031963,-157.0,0.00015429,2]
[351725193,1738767031972,-157.0,0.00015429,2]
[351725195,1738767031982,-157.0,0.00015429,2]
[351725196,1738767031992,-45.25145991,0.00015429,2]
[351725198,1738767032004,-111.74854009,0.00015429,2]
[351725200,1738767032013,-157.0,0.00015429,2]
[351725202,1738767032023,-157.0,0.00015429,2]
[351725204,1738767032034,-157.0,0.00015429,2]
[351725206,1738767032043,-157.0,0.00015429,2]
[351725207,1738767032052,-157.0,0.00015429,2]
[351725209,1738767032062,-157.0,0.00015429,2]
[351725211,1738767032072,-157.0,0.00015429,2]
[351725213,1738767032081,-157.0,0.00015429,2]
[351725215,1738767032091,-157.0,0.00015429,2]
[351725217,1738767032101,-157.0,0.00015429,2]
[351725218,1738767032110,-157.0,0.00015429,2]
[351725220,1738767032120,-157.0,0.00015429,2]
[351725222,1738767032129,-162.91,0.00015429,2]
[351725224,1738767032139,-157.0,0.00015429,2]
[351725226,1738767032150,-157.0,0.00015429,2]
[351725227,1738767032160,-157.0,0.00015429,2]
[351725229,1738767032170,-157.0,0.00015429,2]
[351725231,1738767032180,-157.0,0.00015429,2]
[351725233,1738767032191,-157.0,0.00015429,2]
[351725235,1738767032200,-157.0,0.00015429,2]
[351725237,1738767032211,-157.0,0.00015429,2]
[351725238,1738767032221,-157.0,0.00015429,2]
[351725240,1738767032231,-157.0,0.00015429,2]
[351725242,1738767032241,-157.0,0.00015429,2]
[351725244,1738767032251,-157.0,0.00015429,2]
[351725246,1738767032260,-157.0,0.00015429,2]
[351725248,1738767032270,-157.0,0.00015429,2]
[351725250,1738767032280,-157.0,0.00015429,2]
[351725251,1738767032289,-157.0,0.00015429,2]
[351725253,1738767032298,-157.0,0.00015429,2]
[351725255,1738767032308,-157.0,0.00015429,2]
[351725257,1738767032317,-157.0,0.00015429,2]
[351725259,1738767032327,-176.0,0.00015429,2]
[351725261,1738767032336,-500.0,0.00015458,2]
[351725262,1738767032345,-1449.76,0.00015458,2]
[351725264,1738767032354,-5813.09,0.00015458,2]
[351725266,1738767032363,-500.0,0.00015458,2]
[351725268,1738767032373,-2374.6,0.00015458,2]
[351725270,1738767032382,-3591.94,0.00015458,2]
[351725271,1738767032391,-500.0,0.00015458,2]
[351725274,1738767032402,-820.82,0.00015458,2]
[351725276,1738767032415,-500.0,0.00015458,2]
[351725278,1738767032424,-872.13,0.00015458,2]
[351725280,1738767032433,-888.13,0.00015459,2]
[351725282,1738767032443,-500.0,0.00015459,2]
[351725284,1738767032453,-500.0,0.00015459,2]
[351725286,1738767032462,-500.0,0.00015459,2]
[351725288,1738767032471,-505.86383912,0.00015459,2]
[351725290,1738767032481,-500.0,0.00015459,2]
[351725292,1738767032490,-504.43537008,0.00015459,2]
[351725294,1738767032499,-222.85905389,0.00015459,2]
[351725296,1738767032508,-505.37261328,0.00015459,2]
[351725297,1738767032517,-508.37388053,0.00015459,2]
[351725300,1738767032527,-500.0,0.00015459,2]
[351725301,1738767032537,-510.16371489,0.00015459,2]
[351725303,1738767032546,-500.0,0.00015459,2]
[351725305,1738767032556,-503.83618646,0.00015459,2]
[351725307,1738767032566,-500.0,0.00015459,2]
[351725309,1738767032575,-500.0,0.00015459,2]
[351725311,1738767032585,-500.00041754,0.00015459,2]
[351725313,1738767032595,-500.0,0.00015459,2]
[351725315,1738767032604,-501.64026288,0.00015459,2]
[351725317,1738767032614,-500.0,0.00015459,2]
[351725320,1738767032624,-500.0,0.00015459,2]
[351725321,1738767032633,-500.0,0.00015459,2]
[351725322,1738767032643,-10761.68,0.00015459,2]
[351725323,1738767032656,-500.0,0.00015459,2]
[351725324,1738767032666,-500.0,0.00015459,2]
[351725325,1738767032676,-950.61,0.00015459,2]
[351725326,1738767032686,-500.0,0.00015459,2]
[351725327,1738767032695,-500.0,0.00015459,2]
[351725328,1738767032705,-158.20876609,0.00015459,2]
[351725329,1738767032715,-500.0,0.00015459,2]
[351725330,1738767032725,-512.67,0.00015459,2]
[351725331,1738767032734,-551.69,0.00015459,2]
[351725332,1738767032744,-506.51224385,0.00015459,2]
[351725333,1738767032754,-500.0,0.00015459,2]
[351725334,1738767032763,-187.17761615,0.00015459,2]
[351725335,1738767032774,-491.95714354,0.00015459,2]
[351725336,1738767032783,-616.87,0.00015459,2]
[351725337,1738767032793,-500.0,0.00015459,2]
[351725338,1738767032803,-1283.44981342,0.00015459,2]
[351725800,1738767037826,-16503.81018658,0.00015459,2]
[351725802,1738767037839,-500.0,0.00015459,2]
[351725805,1738767037851,-628.22,0.00015459,2]
[351725807,1738767037863,-500.0,0.00015459,2]
[351725809,1738767037878,-500.0,0.00015459,2]
[351725811,1738767037891,-500.0,0.00015459,2]
[351725813,1738767037904,-500.0,0.00015459,2]
[351725815,1738767037916,-500.0,0.00015459,2]
[351725818,1738767037929,-7078.73,0.00015459,2]
[351725820,1738767037941,-500.0,0.00015459,2]
[351725822,1738767037953,-500.0,0.00015459,2]
[351725824,1738767037965,-500.0,0.00015459,2]
[351725826,1738767037978,-500.0,0.00015459,2]
[351725829,1738767037990,-3873.05,0.00015459,2]
[351725831,1738767038002,-500.0,0.00015459,2]
[351725833,1738767038015,-4702.15,0.00015459,2]
[351725836,1738767038027,-500.27,0.00015459,2]
[351725838,1738767038042,-2980.54,0.00015459,2]
[351725840,1738767038054,-500.0,0.00015459,2]
[351725843,1738767038066,-236.54799573,0.00015459,2]
[351725845,1738767038079,-644.516607,0.00015459,2]
[351725847,1738767038091,-500.0,0.00015459,2]
[351725850,1738767038103,-274.96370318,0.00015459,2]
[351725852,1738767038114,-500.0,0.00015459,2]
[351725854,1738767038127,-500.0,0.00015459,2]
[351725856,1738767038140,-500.0,0.00015459,2]
[351725859,1738767038154,-599.62,0.00015459,2]
[351725861,1738767038167,-519.22,0.00015459,2]
[351725863,1738767038180,-500.0,0.00015459,2]
[351725866,1738767038194,-1187.26,0.00015459,2]
[351725868,1738767038206,-1302.9,0.00015459,2]
[351725870,1738767038219,-1829.04,0.00015459,2]
[351725873,1738767038232,-500.0,0.00015459,2]
[351725875,1738767038244,-500.0,0.00015459,2]
[351725877,1738767038257,-500.0,0.00015459,2]
[351725879,1738767038269,-500.0,0.00015459,2]
[351725882,1738767038281,-500.0,0.00015459,2]
[351725884,1738767038293,-500.0,0.00015459,2]
[351725886,1738767038305,-3093.57,0.00015459,2]
[351725888,1738767038317,-732.24,0.00015459,2]
[351725891,1738767038329,-500.0,0.00015459,2]
[351725893,1738767038341,-500.0,0.00015459,2]
[351725895,1738767038354,-972.84,0.00015459,2]
[351725898,1738767038366,-500.0,0.00015459,2]
[351725900,1738767038375,-7600.11,0.00015459,2]
[351725902,1738767038386,-500.0,0.00015459,2]
[351725903,1738767038396,-500.0,0.00015459,2]
[351725905,1738767038408,-500.0,0.00015459,2]
[351725907,1738767038418,-12392.47,0.00015459,2]
[351725909,1738767038427,-2959.35,0.00015459,2]
[351725911,1738767038437,-500.0,0.00015459,2]
[351725913,1738767038447,-500.0,0.00015459,2]
[351725915,1738767038457,-500.0,0.00015459,2]
[351725941,1738767038709,-606.37,0.00015459,2]
[351725944,1738767038727,-600.19,0.00015459,2]
[351725945,1738767038736,-778.92,0.00015459,2]
[351725948,1738767038747,-886.25,0.00015459,2]
[351725950,1738767038757,-500.0,0.00015459,2]
[351725952,1738767038767,-500.0,0.00015459,2]
[351725953,1738767038777,-500.0,0.00015459,2]
[351725955,1738767038786,-500.0,0.00015459,2]
[351725957,1738767038796,-2948.67,0.00015459,2]
[351725960,1738767038806,-500.0,0.00015459,2]
[351725961,1738767038816,-9428.96,0.00015459,2]
[351725963,1738767038826,-500.0,0.00015459,2]
[351725966,1738767038837,-646.97,0.00015459,2]
[351725967,1738767038847,-519.99234604,0.00015459,2]
[351725970,1738767038859,-4538.1,0.00015459,2]
[351725972,1738767038869,-733.02,0.00015459,2]
[351725974,1738767038882,-500.0,0.00015459,2]
[351725976,1738767038895,-560.94,0.0001546,2]
[351725978,1738767038907,-571.00024054,0.0001546,2]
[351725979,1738767038917,-1130.6,0.0001546,2]
[351725982,1738767038929,-3445.48,0.0001546,2]
[351725984,1738767038938,-500.0,0.0001546,2]
[351725986,1738767038948,-500.0,0.0001546,2]
[351725987,1738767038960,-500.0,0.0001546,2]
[351725989,1738767038970,-569.16,0.0001546,2]
[351725991,1738767038980,-2060.32,0.0001546,2]
[351725993,1738767038990,-529.73,0.0001546,2]
[351725996,1738767039000,-995.79,0.0001546,2]
[351725997,1738767039010,-1545.3,0.0001546,2]
[351725999,1738767039019,-500.0,0.0001546,2]
[351726001,1738767039029,-1449.29,0.0001546,2]
[351726003,1738767039039,-500.0,0.0001546,2]
[351726006,1738767039050,-500.0,0.0001546,2]
[351726008,1738767039061,-500.0,0.0001546,2]
[351726010,1738767039071,-355.15705194,0.0001546,2]
[351726012,1738767039080,-2457.34,0.0001546,2]
[351726014,1738767039090,-1208.74,0.0001546,2]
[351726015,1738767039100,-637.18,0.0001546,2]
[351726017,1738767039109,-500.0,0.0001546,2]
[351726019,1738767039120,-1748.03,0.0001546,2]
[351726021,1738767039129,-500.0,0.0001546,2]
[351726023,1738767039139,-1579.73,0.0001546,2]
[351726025,1738767039149,-500.0,0.0001546,2]
[351726026,1738767039161,-1648.84,0.0001546,2]
[351726027,1738767039171,-832.81,0.0001546,2]
[351726028,1738767039182,-500.0,0.0001546,2]
[351726030,1738767039192,-500.0,0.0001546,2]
[351726032,1738767039202,-1517.28,0.0001546,2]
[351726034,1738767039212,-500.0,0.0001546,2]
[351726036,1738767039223,-1139.92,0.0001546,2]
[351726038,1738767039233,-658.84,0.0001546,2]
[351726040,1738767039244,-2544.71,0.0001546,2]
[351726042,1738767039254,-1064.63,0.0001546,2]
[351726044,1738767039265,-1031.56,0.0001546,2]
[351726046,1738767039274,-2029.87,0.0001546,2]
[351726048,1738767039284,-500.0,0.0001546,2]
[351726050,1738767039294,-500.0,0.0001546,2]
[351726052,1738767039303,-500.0,0.0001546,2]
[351726054,1738767039313,-500.0,0.0001546,2]
[351726056,1738767039323,-500.0,0.0001546,2]
[351726058,1738767039333,-500.0,0.0001546,2]
[351726060,1738767039343,-500.0,0.0001546,2]
[351726062,1738767039353,-1380.86,0.0001546,2]
[351726064,1738767039362,-3119.06,0.0001546,2]
[351726066,1738767039372,-500.0,0.0001546,2]
[351726068,1738767039381,-500.0,0.0001546,2]
[351726070,1738767039391,-500.0,0.0001546,2]
[351726072,1738767039400,-500.0,0.0001546,2]
[351726073,1738767039411,-500.0,0.0001546,2]
[351726074,1738767039420,-500.0,0.0001546,2]
[351726075,1738767039430,-791.08,0.0001546,2]
[351726077,1738767039439,-500.0,0.0001546,2]
[351726079,1738767039448,-2887.85,0.0001546,2]
[351726080,1738767039458,-3409.96,0.0001546,2]
[351726081,1738767039467,-1336.87,0.0001546,2]
[351726082,1738767039477,-1080.61,0.0001546,2]
[351726083,1738767039487,-3946.4,0.0001546,2]
[351726084,1738767039496,-500.0,0.0001546,2]
[351726085,1738767039506,-500.0,0.0001546,2]
[351726086,1738767039515,-500.0,0.0001546,2]
[351726087,1738767039525,-689.47,0.0001546,2]
[351726088,1738767039534,-902.76,0.0001546,2]
[351726089,1738767039543,-178.00689569,0.0001546,2]
[351726090,1738767039553,-495.71475009,0.0001546,2]
[351726091,1738767039562,-500.0,0.0001546,2]
[351726092,1738767039572,-500.0,0.0001546,2]
[351726093,1738767039581,-500.0,0.0001546,2]
[351726094,1738767039591,-500.0,0.0001546,2]
[351726095,1738767039600,-628.84,0.0001546,2]
[351726096,1738767039610,-626.69,0.0001546,2]
[351726098,1738767039620,-1451.59,0.0001546,2]
[351726100,1738767039630,-7930.25,0.0001546,2]
[351726102,1738767039640,-630.04,0.0001546,2]
[351726103,1738767039649,-1372.58,0.0001546,2]
[351726104,1738767039659,-1519.36,0.0001546,2]
[351726105,1738767039669,-500.0,0.0001546,2]
[351726106,1738767039680,-500.0,0.0001546,2]
[351726107,1738767039690,-2941.3,0.0001546,2]
[351726108,1738767039700,-500.0,0.0001546,2]
[351726109,1738767039711,-500.0,0.0001546,2]
[351726110,1738767039720,-661.08,0.0001546,2]
[351726111,1738767039730,-1677.79,0.0001546,2]
[351726112,1738767039739,-500.0,0.0001546,2]
[351726113,1738767039749,-500.0,0.0001546,2]
[351726114,1738767039758,-500.0,0.0001546,2]
[351726115,1738767039768,-500.0,0.0001546,2]
[351726116,1738767039777,-1597.1,0.0001546,2]
[351726117,1738767039787,-1125.63,0.0001546,2]
[351726118,1738767039796,-500.0,0.0001546,2]
[351726119,1738767039806,-7746.62,0.0001546,2]
[351726120,1738767039816,-500.0,0.0001546,2]
[351726121,1738767039826,-967.23,0.0001546,2]
[351726122,1738767039835,-500.0,0.0001546,2]
[351726123,1738767039845,-500.0,0.0001546,2]
[351726124,1738767039855,-500.0,0.0001546,2]
[351726125,1738767039866,-500.0,0.0001546,2]
[351726126,1738767039876,-500.0,0.0001546,2]
[351726127,1738767039889,-34898.47,0.0001546,2]
[351726128,1738767039899,-500.0,0.0001546,2]
[351726129,1738767039909,-326.52367571,0.0001546,2]
[351726130,1738767039919,-569.86,0.0001546,2]
[351726131,1738767039928,-635.36,0.0001546,2]
[351726132,1738767039938,-2618.18,0.0001546,2]
[351726133,1738767039948,-5445.34,0.0001546,2]
[351726134,1738767039958,-500.0,0.0001546,2]
[351726135,1738767039969,-500.0,0.0001546,2]
[351726136,1738767039979,-500.0,0.0001546,2]
[351726137,1738767039988,-500.0,0.0001546,2]
[351726138,1738767039998,-500.0,0.0001546,2]
[351726139,1738767040007,-624.01999998,0.0001546,2]
[351726140,1738767040017,-560.46,0.0001546,2]
[351726141,1738767040027,-502.68,0.0001546,2]
[351726142,1738767040037,-119461.6,0.0001546,2]
[351726143,1738767040046,-500.0,0.0001546,2]
[351726144,1738767040056,-635.42,0.0001546,2]
[351726145,1738767040066,-500.0,0.0001546,2]
[351726146,1738767040077,-500.0,0.0001546,2]
[351726147,1738767040087,-814.64772202,0.00015461,3]
[351726148,1738767040096,-2964.2,0.00015461,2]
[351726149,1738767040106,-500.0,0.00015461,2]
[351726150,1738767040115,-302.27354798,0.00015461,2]
[351726151,1738767040125,-500.0,0.00015461,2]
[351726152,1738767040135,-807.42,0.00015461,2]
[351726153,1738767040144,-500.0,0.00015461,2]
[351726155,1738767040153,-605.75,0.00015461,2]
[351726157,1738767040166,-33594.74,0.00015461,2]
[351726159,1738767040176,-2030.97,0.00015461,2]
[351726161,1738767040186,-500.0,0.00015461,2]
[351726163,1738767040196,-504.73756369,0.00015462,2]
[351726164,1738767040205,-289.85139457,0.00015462,2]
[351726165,1738767040215,-500.0,0.00015462,2]
[351726166,1738767040225,-517.06471231,0.00015462,2]
[351726167,1738767040234,-1177.21,0.00015462,2]
[351726168,1738767040244,-500.0,0.00015462,2]
[351726169,1738767040253,-500.0,0.00015462,2]
[351726170,1738767040263,-500.0,0.00015462,2]
[351726171,1738767040272,-500.0,0.00015462,2]
[351726172,1738767040282,-500.0,0.00015462,2]
[351726173,1738767040292,-500.0,0.00015462,2]
[351726174,1738767040302,-500.0,0.00015462,2]
[351726175,1738767040312,-500.0,0.00015462,2]
[351726176,1738767040321,-500.0,0.00015462,2]
[351726177,1738767040331,-500.0,0.00015462,2]
[351726178,1738767040341,-500.0,0.00015462,2]
[351726179,1738767040352,-670.12,0.00015462,2]
[351726180,1738767040361,-500.0,0.00015462,2]
[351726181,1738767040371,-628.36,0.00015462,2]
[351726182,1738767040380,-197.77364273,0.00015462,2]
[351726183,1738767040390,-500.0,0.00015462,2]
[351726184,1738767040400,-500.0,0.00015462,2]
[351726185,1738767040412,-500.0,0.00015462,2]
[351726186,1738767040422,-1275.94,0.00015462,2]
[351726187,1738767040431,-500.0,0.00015462,2]
[351726188,1738767040441,-500.0,0.00015462,2]
[351726189,1738767040451,-500.0,0.00015462,2]
[351726191,1738767040460,-500.0,0.00015462,2]
[351726193,1738767040470,-500.0,0.00015462,2]
[351726194,1738767040479,-500.0,0.00015462,2]
[351726196,1738767040488,-500.0,0.00015462,2]
[351726197,1738767040497,-500.0,0.00015462,2]
[351726198,1738767040507,-581.66,0.00015462,2]
[351726199,1738767040516,-500.0,0.00015462,2]
[351726200,1738767040526,-500.0,0.00015462,2]
[351726201,1738767040536,-500.0,0.00015462,2]
[351726202,1738767040545,-500.0,0.00015462,2]
[351726203,1738767040555,-500.0,0.00015462,2]
[351726204,1738767040565,-500.0,0.00015462,2]
[351726205,1738767040575,-500.0,0.00015462,2]
[351726206,1738767040585,-500.0,0.00015462,2]
[351726207,1738767040595,-500.0,0.00015462,2]
[351726208,1738767040604,-505.72471782,0.00015462,2]
[351726209,1738767040614,-789.54,0.00015462,2]
[351726210,1738767040623,-500.0,0.00015462,2]
[351726211,1738767040633,-500.0,0.00015462,2]
[351726212,1738767040642,-500.0,0.00015462,2]
[351726213,1738767040651,-500.0,0.00015462,2]
[351726214,1738767040663,-500.0,0.00015462,2]
[351726215,1738767040673,-500.0,0.00015462,2]
[351726216,1738767040682,-500.0,0.00015462,2]
[351726217,1738767040691,-500.0,0.00015462,2]
[351726218,1738767040701,-500.0,0.00015462,2]
[351726219,1738767040710,-729.49,0.00015462,2]
[351726220,1738767040719,-500.0,0.00015462,2]
[351726221,1738767040729,-500.0,0.00015462,2]
[351726222,1738767040738,-500.0,0.00015462,2]
[351726223,1738767040748,-1147.63,0.00015462,2]
[351726224,1738767040757,-500.0,0.00015462,2]
[351726225,1738767040767,-500.0,0.00015462,2]
[351726226,1738767040776,-500.0,0.00015462,2]
[351726227,1738767040786,-227.49803977,0.00015462,2]
[351726228,1738767040795,-500.0,0.00015462,2]
[351726229,1738767040804,-264.79835381,0.00015462,2]
[351726230,1738767040815,-500.0,0.00015462,2]
[351726231,1738767040824,-500.0,0.00015462,2]
[351726232,1738767040834,-500.0,0.00015462,2]
[351726233,1738767040843,-500.0,0.00015462,2]
[351726234,1738767040853,-500.0,0.00015462,2]
[351726235,1738767040862,-500.0,0.00015462,2]
[351726236,1738767040872,-220.24451567,0.00015462,2]
[351726237,1738767040886,-500.0,0.00015462,2]
[351726238,1738767040895,-500.0,0.00015462,2]
[351726239,1738767040906,-500.0,0.00015462,2]
[351726240,1738767040916,-509.4,0.00015462,2]
[351726241,1738767040926,-500.0,0.00015462,2]
[351726242,1738767040936,-500.0,0.00015462,2]
[351726243,1738767040946,-500.0,0.00015462,2]
[351726244,1738767040955,-500.0,0.00015462,2]
[351726245,1738767040966,-738.56,0.00015462,2]
[351726246,1738767040975,-500.0,0.00015462,2]
[351726247,1738767040985,-643.46,0.00015462,2]
[351726248,1738767040994,-500.0,0.00015462,2]
[351726249,1738767041004,-500.0,0.00015462,2]
[351726250,1738767041013,-500.0,0.00015462,2]
[351726251,1738767041023,-500.0,0.00015462,2]
[351726252,1738767041033,-500.0,0.00015462,2]
[351726253,1738767041043,-536.31,0.00015462,2]
[351726254,1738767041053,-800.06,0.00015462,2]
[351726255,1738767041062,-493.30802377,0.00015462,2]
[351726256,1738767041072,-500.0,0.00015462,2]
[351726257,1738767041081,-500.0,0.00015462,2]
[351726258,1738767041090,-500.0,0.00015462,2]
[351726259,1738767041101,-1189.48,0.00015462,2]
[351726260,1738767041110,-1715.61,0.00015462,2]
[351726261,1738767041119,-1543.04,0.00015462,2]
[351726262,1738767041128,-591.47,0.00015462,2]
[351726263,1738767041137,-500.0,0.00015462,2]
[351726264,1738767041147,-500.0,0.00015462,2]
[351726265,1738767041158,-500.0,0.00015462,2]
[351726266,1738767041167,-500.0,0.00015462,2]
[351726267,1738767041176,-500.0,0.00015462,2]
[351726268,1738767041185,-503.56299135,0.00015462,2]
[351726269,1738767041194,-500.0,0.00015462,2]
[351726270,1738767041204,-500.0,0.00015462,2]
[351726271,1738767041214,-500.0,0.00015462,2]
[351726272,1738767041223,-698.52,0.00015462,2]
[351726273,1738767041233,-500.0,0.00015462,2]
[351726274,1738767041243,-817.49,0.00015462,2]
[351726275,1738767041252,-500.0,0.00015462,2]
[351726276,1738767041261,-464.87876989,0.00015462,2]
[351726277,1738767041271,-500.0,0.00015462,2]
[351726278,1738767041280,-2237.01,0.00015462,2]
[351726279,1738767041289,-590.09,0.00015462,2]
[351726280,1738767041298,-500.0,0.00015462,2]
[351726281,1738767041307,-500.0,0.00015462,2]
[351726282,1738767041317,-592.32,0.00015462,2]
[351726283,1738767041327,-500.0,0.00015462,2]
[351726284,1738767041335,-500.0,0.00015462,2]
[351726285,1738767041345,-500.0,0.00015462,2]
[351726286,1738767041354,-500.0,0.00015462,2]
[351726287,1738767041364,-884.96,0.00015462,2]
[351726288,1738767041373,-500.0,0.00015462,2]
[351726289,1738767041383,-500.0,0.00015462,2]
[351726290,1738767041392,-629.0,0.00015462,2]
[351726291,1738767041401,-500.0,0.00015462,2]
[351726292,1738767041413,-500.0,0.00015462,2]
[351726293,1738767041424,-500.0,0.00015462,2]
[351726294,1738767041433,-500.0,0.00015462,2]
[351726295,1738767041443,-500.0,0.00015462,2]
[351726296,1738767041453,-1023.29,0.00015462,2]
[351726297,1738767041462,-500.0,0.00015462,2]
[351726298,1738767041472,-502.5275146,0.00015462,2]
[351726299,1738767041482,-639.61989812,0.00015462,2]
[351726300,1738767041492,-500.0,0.00015462,2]
[351726301,1738767041501,-188.0,0.00015462,2]
[351726302,1738767041511,-500.0,0.00015462,2]
[351726303,1738767041521,-528.28,0.00015462,2]
[351726304,1738767041531,-500.0,0.00015462,2]
[351726305,1738767041540,-500.0,0.00015462,2]
[351726306,1738767041550,-1000.0,0.00015462,2]
[351726307,1738767041560,-500.0,0.00015462,2]
[351726308,1738767041570,-297.68546078,0.00015462,2]
[351726309,1738767041580,-500.0,0.00015462,2]
[351726310,1738767041589,-500.0,0.00015462,2]
[351726311,1738767041599,-841.54,0.00015462,2]
[351726312,1738767041609,-500.0,0.00015462,2]
[351726313,1738767041619,-231.74917396,0.00015462,2]
[351726314,1738767041629,-500.0,0.00015462,2]
[351726315,1738767041638,-500.0,0.00015462,2]
[351726316,1738767041648,-500.0,0.00015462,2]
[351726317,1738767041660,-500.0,0.00015462,2]
[351726318,1738767041670,-500.0,0.00015462,2]
[351726319,1738767041679,-500.0,0.00015462,2]
[351726320,1738767041688,-500.0,0.00015462,2]
[351726321,1738767041697,-500.0,0.00015462,2]
[351726322,1738767041706,-500.0,0.00015462,2]